[Event "*** Titled Tuesday Blitz"]
[Site "Chess.com"]
[Date "2020.04.21"]
[Round "8"]
[White "MathiasWomacka"]
[Black "KarpovVadim"]
[Result "1/2-1/2"]
[WhiteElo "2445"]
[BlackElo "2326"]
[TimeControl "180+1"]
[EndTime "11:38:57 PDT"]
[Termination "Game drawn - insufficient material"]

1. e4 {[%clk 0:03:00.9]} 1... e5 {[%clk 0:02:59.1]} 2. Nf3 {[%clk 0:03:00.2]}
2... Nf6 {[%clk 0:02:59.1]} 3. Nxe5 {[%clk 0:02:59.5]} 3... d6 {[%clk 0:02:58]}
4. Nf3 {[%clk 0:03:00.1]} 4... Nxe4 {[%clk 0:02:58.1]} 5. d4 {[%clk 0:03:00.8]}
5... d5 {[%clk 0:02:56.8]} 6. Bd3 {[%clk 0:03:01.3]} 6... Be7 {[%clk 0:02:53.6]}
7. O-O {[%clk 0:03:00.7]} 7... Bf5 {[%clk 0:02:53.2]} 8. Nc3 {[%clk 0:02:53.4]}
8... O-O {[%clk 0:02:47.5]} 9. Re1 {[%clk 0:02:52.9]} 9... Nxc3 {[%clk
0:02:42.2]} 10. bxc3 {[%clk 0:02:53.8]} 10... Bxd3 {[%clk 0:02:40.8]} 11. cxd3
{[%clk 0:02:54.7]} 11... Nc6 {[%clk 0:02:36.6]} 12. Rb1 {[%clk 0:02:50.2]} 12...
Rb8 {[%clk 0:02:35]} 13. Bf4 {[%clk 0:02:46.7]} 13... Bd6 {[%clk 0:02:32.4]} 14.
Ne5 {[%clk 0:02:44.8]} 14... Bxe5 {[%clk 0:02:30.1]} 15. dxe5 {[%clk 0:02:44.3]}
15... d4 {[%clk 0:02:29.4]} 16. c4 {[%clk 0:02:42.7]} 16... Qd7 {[%clk 0:02:28]}
17. Qf3 {[%clk 0:02:32.5]} 17... b6 {[%clk 0:02:21.4]} 18. Re4 {[%clk
0:02:24.5]} 18... Rbe8 {[%clk 0:02:17.6]} 19. Rbe1 {[%clk 0:02:22.3]} 19... Re6
{[%clk 0:02:13]} 20. Bg3 {[%clk 0:02:09.1]} 20... Rfe8 {[%clk 0:02:07]} 21. h4
{[%clk 0:02:06.5]} 21... Ne7 {[%clk 0:01:35.5]} 22. h5 {[%clk 0:01:57]} 22... h6
{[%clk 0:01:32.3]} 23. Qg4 {[%clk 0:01:56.4]} 23... c5 {[%clk 0:01:28.3]} 24.
Bh4 {[%clk 0:01:23.9]} 24... Qc8 {[%clk 0:01:19.2]} 25. f4 {[%clk 0:01:13.3]}
25... Rc6 {[%clk 0:01:16.4]} 26. Qxc8 {[%clk 0:01:11.3]} 26... Rcxc8 {[%clk
0:01:14.1]} 27. Bxe7 {[%clk 0:01:08]} 27... Rxe7 {[%clk 0:01:13]} 28. f5 {[%clk
0:01:08.1]} 28... a6 {[%clk 0:01:11.9]} 29. Rb1 {[%clk 0:01:02.2]} 29... Rb8
{[%clk 0:01:10.6]} 30. a4 {[%clk 0:01:01.7]} 30... Kf8 {[%clk 0:01:09.1]} 31.
Kf2 {[%clk 0:01:01.7]} 31... Reb7 {[%clk 0:01:08]} 32. e6 {[%clk 0:01:00]} 32...
b5 {[%clk 0:01:02.5]} 33. axb5 {[%clk 0:00:57.6]} 33... axb5 {[%clk 0:01:02.5]}
34. cxb5 {[%clk 0:00:48.1]} 34... Rxb5 {[%clk 0:01:01.6]} 35. Rxb5 {[%clk
0:00:47.9]} 35... Rxb5 {[%clk 0:01:01.9]} 36. Re5 {[%clk 0:00:47.9]} 36... Rb2+
{[%clk 0:00:54.7]} 37. Kf3 {[%clk 0:00:47.1]} 37... Rc2 {[%clk 0:00:50.8]} 38.
g4 {[%clk 0:00:41.8]} 38... fxe6 {[%clk 0:00:46.7]} 39. fxe6 {[%clk 0:00:26.9]}
39... Ke7 {[%clk 0:00:45.6]} 40. Ke4 {[%clk 0:00:27.3]} 40... Re2+ {[%clk
0:00:42.9]} 41. Kd5 {[%clk 0:00:26.8]} 41... Rxe5+ {[%clk 0:00:40.8]} 42. Kxe5
{[%clk 0:00:26.8]} 42... c4 {[%clk 0:00:40.7]} 43. Kxd4 {[%clk 0:00:17.9]} 43...
cxd3 {[%clk 0:00:40.2]} 44. Kxd3 {[%clk 0:00:18.8]} 44... Kxe6 {[%clk
0:00:40.5]} 45. Ke4 {[%clk 0:00:19]} 45... Kf6 {[%clk 0:00:40.2]} 46. Kf4 {[%clk
0:00:19.5]} 46... g6 {[%clk 0:00:39]} 47. hxg6 {[%clk 0:00:18.9]} 47... Kxg6
{[%clk 0:00:38.6]} 48. Kg3 {[%clk 0:00:19.4]} 48... Kg5 {[%clk 0:00:37.6]} 49.
Kh3 {[%clk 0:00:19.2]} 49... h5 {[%clk 0:00:36.9]} 50. gxh5 {[%clk 0:00:20.1]}
50... Kxh5 {[%clk 0:00:36.3]} 1/2-1/2

[Event "*** Titled Tuesday Blitz"]
[Site "Chess.com"]
[Date "2020.04.21"]
[Round "8"]
[White "Karacsonyi_Gellert"]
[Black "Mikhail_Biryukov"]
[Result "1/2-1/2"]
[WhiteElo "2515"]
[BlackElo "2675"]
[TimeControl "180+1"]
[EndTime "11:38:58 PDT"]
[Termination "Game drawn by repetition"]

1. e4 {[%clk 0:03:00.9]} 1... c5 {[%clk 0:02:59.6]} 2. Nf3 {[%clk 0:03:00.2]}
2... Nc6 {[%clk 0:02:59.8]} 3. d4 {[%clk 0:03:00]} 3... cxd4 {[%clk 0:02:59.7]}
4. Nxd4 {[%clk 0:03:00.9]} 4... Nf6 {[%clk 0:03:00.2]} 5. Nc3 {[%clk 0:03:01.4]}
5... e5 {[%clk 0:03:00.5]} 6. Nf5 {[%clk 0:03:01.7]} 6... d5 {[%clk 0:03:00.2]}
7. exd5 {[%clk 0:03:02.6]} 7... Bxf5 {[%clk 0:03:00.3]} 8. dxc6 {[%clk
0:03:03.5]} 8... Qxd1+ {[%clk 0:03:00.6]} 9. Nxd1 {[%clk 0:03:04.4]} 9... bxc6
{[%clk 0:03:00.6]} 10. Ne3 {[%clk 0:03:05.1]} 10... Be6 {[%clk 0:03:00.8]} 11.
Nc4 {[%clk 0:03:05.2]} 11... Nd7 {[%clk 0:02:58]} 12. Be3 {[%clk 0:03:01.6]}
12... f5 {[%clk 0:02:55.8]} 13. f3 {[%clk 0:03:01.4]} 13... Be7 {[%clk
0:02:48.1]} 14. O-O-O {[%clk 0:03:01.8]} 14... Bf6 {[%clk 0:02:45.9]} 15. Bd3
{[%clk 0:02:58.2]} 15... Ke7 {[%clk 0:02:41.1]} 16. Rhe1 {[%clk 0:02:53.2]}
16... a5 {[%clk 0:02:37]} 17. Nb6 {[%clk 0:02:48.3]} 17... Nxb6 {[%clk
0:02:16.5]} 18. Bxb6 {[%clk 0:02:49.2]} 18... Kf7 {[%clk 0:01:40.7]} 19. Bc7
{[%clk 0:02:45.6]} 19... Bxa2 {[%clk 0:01:26.5]} 20. Bxe5 {[%clk 0:02:31.1]}
20... Be6 {[%clk 0:01:21.5]} 21. Bxf6 {[%clk 0:02:28.3]} 21... Kxf6 {[%clk
0:01:21.3]} 22. f4 {[%clk 0:02:23.9]} 22... a4 {[%clk 0:01:15.6]} 23. Re5 {[%clk
0:02:22.2]} 23... g6 {[%clk 0:01:08.9]} 24. Rde1 {[%clk 0:02:22.1]} 24... Bd5
{[%clk 0:01:09.2]} 25. g3 {[%clk 0:02:19.2]} 25... a3 {[%clk 0:01:09]} 26. bxa3
{[%clk 0:02:18.7]} 26... Rxa3 {[%clk 0:01:09.7]} 27. Kd2 {[%clk 0:02:12.3]}
27... Rd8 {[%clk 0:01:08.1]} 28. Re7 {[%clk 0:02:00.9]} 28... Be4 {[%clk
0:01:07.7]} 29. Rc7 {[%clk 0:01:59]} 29... Bxd3 {[%clk 0:01:04.8]} 30. Rxc6+
{[%clk 0:01:56.3]} 30... Kg7 {[%clk 0:01:05]} 31. cxd3 {[%clk 0:01:41.9]} 31...
Raxd3+ {[%clk 0:01:00.5]} 32. Kc1 {[%clk 0:01:41.9]} 32... R8d7 {[%clk 0:01:00]}
33. Rce6 {[%clk 0:01:35.7]} 33... Rc3+ {[%clk 0:00:54.9]} 34. Kb2 {[%clk
0:01:35.2]} 34... Rcc7 {[%clk 0:00:55]} 35. R1e2 {[%clk 0:01:29.9]} 35... Kh6
{[%clk 0:00:54.9]} 36. Rc2 {[%clk 0:01:22.8]} 36... Ra7 {[%clk 0:00:52.2]} 37.
Ree2 {[%clk 0:01:18.9]} 37... Kh5 {[%clk 0:00:50.7]} 38. h3 {[%clk 0:01:12.6]}
38... Rd3 {[%clk 0:00:49.9]} 39. Rg2 {[%clk 0:01:12.2]} 39... Rb7+ {[%clk
0:00:43.2]} 40. Kc1 {[%clk 0:01:11.7]} 40... Rb5 {[%clk 0:00:32]} 41. g4+ {[%clk
0:01:11.2]} 41... Kh4 {[%clk 0:00:31.8]} 42. gxf5 {[%clk 0:01:07.8]} 42... Rxf5
{[%clk 0:00:30.9]} 43. Rc7 {[%clk 0:01:03.6]} 43... Rh5 {[%clk 0:00:30.8]} 44.
Rg5 {[%clk 0:00:40.4]} 44... Rh6 {[%clk 0:00:25]} 45. Rc2 {[%clk 0:00:31.2]}
45... Kxh3 {[%clk 0:00:23.5]} 46. Rcg2 {[%clk 0:00:28.8]} 46... Rh4 {[%clk
0:00:22.9]} 47. Rg1 {[%clk 0:00:25.8]} 47... Kh2 {[%clk 0:00:22.8]} 48. R1g2+
{[%clk 0:00:23.5]} 48... Kh3 {[%clk 0:00:23]} 49. Rg1 {[%clk 0:00:23.9]} 49...
Kh2 {[%clk 0:00:21.9]} 50. R1g2+ {[%clk 0:00:24.1]} 50... Kh3 {[%clk 0:00:22.4]}
1/2-1/2

[Event "*** Titled Tuesday Blitz"]
[Site "Chess.com"]
[Date "2020.04.21"]
[Round "8"]
[White "benko_008"]
[Black "ChessTraining77"]
[Result "1/2-1/2"]
[WhiteElo "2515"]
[BlackElo "2650"]
[TimeControl "180+1"]
[EndTime "11:38:58 PDT"]
[Termination "Game drawn by repetition"]

1. Nf3 {[%clk 0:03:00.9]} 1... Nf6 {[%clk 0:02:57.7]} 2. g3 {[%clk 0:03:00.7]}
2... d5 {[%clk 0:02:56.4]} 3. Bg2 {[%clk 0:03:00.1]} 3... c6 {[%clk 0:02:56.6]}
4. d3 {[%clk 0:02:58.9]} 4... Bf5 {[%clk 0:02:55.5]} 5. Nh4 {[%clk 0:02:54.8]}
5... Bg4 {[%clk 0:02:51.3]} 6. h3 {[%clk 0:02:53.3]} 6... Bh5 {[%clk 0:02:51.3]}
7. g4 {[%clk 0:02:51]} 7... Bg6 {[%clk 0:02:50.8]} 8. e3 {[%clk 0:02:46]} 8...
e5 {[%clk 0:02:49.9]} 9. Nd2 {[%clk 0:02:41.5]} 9... Bd6 {[%clk 0:02:49.4]} 10.
Qe2 {[%clk 0:02:37.2]} 10... Qe7 {[%clk 0:02:49]} 11. Nf1 {[%clk 0:02:21.3]}
11... Nfd7 {[%clk 0:02:38.8]} 12. Nxg6 {[%clk 0:01:56.5]} 12... hxg6 {[%clk
0:02:36.7]} 13. Bd2 {[%clk 0:01:55.7]} 13... a5 {[%clk 0:02:34.7]} 14. f4 {[%clk
0:01:53.3]} 14... a4 {[%clk 0:02:29.9]} 15. a3 {[%clk 0:01:48.5]} 15... Na6
{[%clk 0:02:29.2]} 16. Ng3 {[%clk 0:01:17.6]} 16... Nc7 {[%clk 0:02:22.3]} 17.
Rf1 {[%clk 0:01:11.7]} 17... Ne6 {[%clk 0:01:41.1]} 18. Kd1 {[%clk 0:00:49]}
18... O-O-O {[%clk 0:01:23.2]} 19. c3 {[%clk 0:00:47.8]} 19... Rde8 {[%clk
0:01:20.1]} 20. Qf2 {[%clk 0:00:39.7]} 20... Nec5 {[%clk 0:01:07.4]} 21. Kc2
{[%clk 0:00:38.1]} 21... e4 {[%clk 0:01:03.5]} 22. dxe4 {[%clk 0:00:37.3]} 22...
dxe4 {[%clk 0:00:58.9]} 23. Qe2 {[%clk 0:00:37.3]} 23... Qe6 {[%clk 0:00:49.2]}
24. c4 {[%clk 0:00:30.9]} 24... Nb6 {[%clk 0:00:43.1]} 25. Bc3 {[%clk
0:00:21.7]} 25... f6 {[%clk 0:00:33.2]} 26. Rad1 {[%clk 0:00:19.7]} 26... Nxc4
{[%clk 0:00:29.9]} 27. f5 {[%clk 0:00:19.9]} 27... gxf5 {[%clk 0:00:19.1]} 28.
Nxf5 {[%clk 0:00:18.9]} 28... Bf8 {[%clk 0:00:15.2]} 29. Nd4 {[%clk 0:00:17.2]}
29... Qf7 {[%clk 0:00:14]} 30. Kb1 {[%clk 0:00:15.3]} 30... Nd3 {[%clk 0:00:14]}
31. Rxd3 {[%clk 0:00:14.7]} 31... exd3 {[%clk 0:00:13.3]} 32. Qxd3 {[%clk
0:00:15.6]} 32... Nxe3 {[%clk 0:00:13]} 33. Nxc6 {[%clk 0:00:13.1]} 33... Nxg2
{[%clk 0:00:11.7]} 34. Qf5+ {[%clk 0:00:11.1]} 34... Qd7 {[%clk 0:00:10.7]} 35.
Na7+ {[%clk 0:00:10.4]} 35... Kd8 {[%clk 0:00:10.5]} 36. Ba5+ {[%clk 0:00:10.3]}
36... Ke7 {[%clk 0:00:09.3]} 37. Bb4+ {[%clk 0:00:07.7]} 37... Kd8 {[%clk
0:00:08.4]} 38. Ba5+ {[%clk 0:00:07.9]} 38... Ke7 {[%clk 0:00:08.5]} 39. Bb4+
{[%clk 0:00:08.3]} 39... Kd8 {[%clk 0:00:08.7]} 40. Ba5+ {[%clk 0:00:08.7]}
1/2-1/2

[Event "*** Titled Tuesday Blitz"]
[Site "Chess.com"]
[Date "2020.04.21"]
[Round "8"]
[White "HomayoonTofighi"]
[Black "swimmerchess"]
[Result "0-1"]
[WhiteElo "2916"]
[BlackElo "2857"]
[TimeControl "180+1"]
[EndTime "11:38:59 PDT"]
[Termination "swimmerchess won by resignation"]

1. e4 {[%clk 0:03:00.7]} 1... c5 {[%clk 0:03:00]} 2. Nf3 {[%clk 0:03:01]} 2...
d6 {[%clk 0:03:00.6]} 3. Bb5+ {[%clk 0:03:01.2]} 3... Nd7 {[%clk 0:03:00.4]} 4.
d4 {[%clk 0:03:01.2]} 4... cxd4 {[%clk 0:03:00.5]} 5. Qxd4 {[%clk 0:03:02.1]}
5... a6 {[%clk 0:03:01.4]} 6. Bxd7+ {[%clk 0:03:02.5]} 6... Bxd7 {[%clk
0:03:02.3]} 7. c4 {[%clk 0:03:03.4]} 7... e5 {[%clk 0:03:01.1]} 8. Qd3 {[%clk
0:03:04]} 8... b5 {[%clk 0:03:02]} 9. Nc3 {[%clk 0:03:04.5]} 9... bxc4 {[%clk
0:03:02.4]} 10. Qxc4 {[%clk 0:03:05.4]} 10... Be6 {[%clk 0:03:03]} 11. Qc6+
{[%clk 0:03:06.1]} 11... Bd7 {[%clk 0:03:03.2]} 12. Qc4 {[%clk 0:03:06.7]} 12...
h6 {[%clk 0:02:56.6]} 13. O-O {[%clk 0:03:05.4]} 13... Nf6 {[%clk 0:02:53.9]}
14. Rd1 {[%clk 0:03:01.4]} 14... Be7 {[%clk 0:02:53.7]} 15. b3 {[%clk
0:03:00.2]} 15... O-O {[%clk 0:02:53.7]} 16. Qd3 {[%clk 0:02:37.4]} 16... Rc8
{[%clk 0:02:40.5]} 17. Bb2 {[%clk 0:02:35.1]} 17... Qb6 {[%clk 0:02:39.7]} 18.
Rac1 {[%clk 0:02:31.4]} 18... Qb7 {[%clk 0:02:35.5]} 19. Nd2 {[%clk 0:02:26.7]}
19... Be6 {[%clk 0:02:21.3]} 20. Nf1 {[%clk 0:02:26.8]} 20... Nd7 {[%clk
0:01:33.4]} 21. Ne3 {[%clk 0:02:14.4]} 21... Nc5 {[%clk 0:01:32.8]} 22. Qb1
{[%clk 0:02:14.7]} 22... Bg5 {[%clk 0:01:24.4]} 23. Rxd6 {[%clk 0:02:08.7]}
23... Bxe3 {[%clk 0:01:14.6]} 24. fxe3 {[%clk 0:02:09.6]} 24... Qe7 {[%clk
0:01:15.5]} 25. Rd2 {[%clk 0:01:52.7]} 25... Qg5 {[%clk 0:01:15.2]} 26. Re1
{[%clk 0:01:53.2]} 26... Rfd8 {[%clk 0:01:14.6]} 27. Nd5 {[%clk 0:01:51.8]}
27... f5 {[%clk 0:01:09.5]} 28. Bxe5 {[%clk 0:01:25.2]} 28... Nxe4 {[%clk
0:01:02.3]} 29. Bf4 {[%clk 0:00:45.5]} 29... Nxd2 {[%clk 0:01:01.5]} 30. Bxg5
{[%clk 0:00:33.7]} 30... Nxb1 {[%clk 0:01:01.3]} 31. Bxd8 {[%clk 0:00:34]} 31...
Bxd5 {[%clk 0:01:00.6]} 32. Ba5 {[%clk 0:00:33.8]} 32... Be4 {[%clk 0:01:00.4]}
33. Rd1 {[%clk 0:00:31.6]} 33... Nc3 {[%clk 0:00:58.6]} 34. Rd2 {[%clk
0:00:32.1]} 34... Nd5 {[%clk 0:00:55.5]} 35. Kf2 {[%clk 0:00:32.7]} 35... Kf7
{[%clk 0:00:55.1]} 36. Rb2 {[%clk 0:00:30.7]} 36... Ke6 {[%clk 0:00:55]} 37. Bd2
{[%clk 0:00:30.9]} 37... g5 {[%clk 0:00:53.7]} 38. h3 {[%clk 0:00:30.5]} 38...
h5 {[%clk 0:00:53.8]} 39. b4 {[%clk 0:00:29.1]} 39... h4 {[%clk 0:00:51.6]} 40.
a4 {[%clk 0:00:29.2]} 40... Nb6 {[%clk 0:00:51.8]} 41. b5 {[%clk 0:00:27.6]}
41... Nxa4 {[%clk 0:00:51.5]} 42. Rb4 {[%clk 0:00:28.5]} 42... axb5 {[%clk
0:00:50.9]} 43. Rxb5 {[%clk 0:00:28.3]} 43... Rc2 {[%clk 0:00:51.5]} 44. Ke1
{[%clk 0:00:28.4]} 44... Nb2 {[%clk 0:00:49.6]} 45. Rb6+ {[%clk 0:00:26.2]}
45... Kd5 {[%clk 0:00:49.7]} 46. Rb5+ {[%clk 0:00:24.8]} 46... Kc6 {[%clk
0:00:50.2]} 47. Rb8 {[%clk 0:00:23.9]} 47... Nc4 {[%clk 0:00:47.5]} 48. Bb4
{[%clk 0:00:22.5]} 48... Nxe3 {[%clk 0:00:45.9]} 49. Rc8+ {[%clk 0:00:19.6]}
49... Kd7 {[%clk 0:00:46]} 0-1

[Event "*** Titled Tuesday Blitz"]
[Site "Chess.com"]
[Date "2020.04.21"]
[Round "8"]
[White "GOGIEFF"]
[Black "Dr-Bassem"]
[Result "1-0"]
[WhiteElo "2959"]
[BlackElo "2797"]
[TimeControl "180+1"]
[EndTime "11:39:00 PDT"]
[Termination "GOGIEFF won on time"]

1. d4 {[%clk 0:03:00.9]} 1... e6 {[%clk 0:02:58.8]} 2. c4 {[%clk 0:03:00.3]}
2... f5 {[%clk 0:02:59.3]} 3. g3 {[%clk 0:02:59.8]} 3... Nf6 {[%clk 0:02:59.9]}
4. Bg2 {[%clk 0:03:00]} 4... Be7 {[%clk 0:03:00.6]} 5. d5 {[%clk 0:02:49.1]}
5... e5 {[%clk 0:02:58.4]} 6. Nc3 {[%clk 0:02:44.2]} 6... Bb4 {[%clk 0:02:46.3]}
7. Bd2 {[%clk 0:02:43.1]} 7... O-O {[%clk 0:02:40]} 8. a3 {[%clk 0:02:42]} 8...
Bxc3 {[%clk 0:02:38.2]} 9. Bxc3 {[%clk 0:02:42.9]} 9... d6 {[%clk 0:02:38.7]}
10. f4 {[%clk 0:02:26.6]} 10... exf4 {[%clk 0:02:28]} 11. gxf4 {[%clk
0:02:25.4]} 11... Ne4 {[%clk 0:02:28.4]} 12. Bxe4 {[%clk 0:02:21]} 12... Qh4+
{[%clk 0:02:25.7]} 13. Kf1 {[%clk 0:02:08.3]} 13... fxe4 {[%clk 0:02:23.5]} 14.
e3 {[%clk 0:02:08.8]} 14... Nd7 {[%clk 0:01:23.8]} 15. Qe1 {[%clk 0:02:05.2]}
15... Qh6 {[%clk 0:01:17.8]} 16. Qg3 {[%clk 0:01:57.8]} 16... Ne5 {[%clk
0:01:12.8]} 17. Ne2 {[%clk 0:01:47.9]} 17... Bh3+ {[%clk 0:01:09.9]} 18. Ke1
{[%clk 0:01:45.4]} 18... Nxc4 {[%clk 0:00:58.7]} 19. Rg1 {[%clk 0:01:36.9]}
19... Rf7 {[%clk 0:00:59]} 20. Nd4 {[%clk 0:01:11.9]} 20... Re8 {[%clk
0:00:49.4]} 21. Rd1 {[%clk 0:00:54.5]} 21... Nb6 {[%clk 0:00:41.4]} 22. Ne2
{[%clk 0:00:48.3]} 22... Bf5 {[%clk 0:00:33.2]} 23. h4 {[%clk 0:00:46.9]} 23...
Bg6 {[%clk 0:00:24.2]} 24. Qg5 {[%clk 0:00:39.6]} 24... Qxg5 {[%clk 0:00:20.9]}
25. Rxg5 {[%clk 0:00:40.5]} 25... Rf5 {[%clk 0:00:15.8]} 26. Ng3 {[%clk
0:00:40.6]} 26... Rxg5 {[%clk 0:00:15.4]} 27. hxg5 {[%clk 0:00:41.5]} 27... Bf7
{[%clk 0:00:14.1]} 28. Nf5 {[%clk 0:00:32.3]} 28... Nxd5 {[%clk 0:00:14]} 29.
Bxg7 {[%clk 0:00:26.8]} 29... Nxe3 {[%clk 0:00:14.4]} 30. Nxe3 {[%clk
0:00:24.3]} 30... Kxg7 {[%clk 0:00:14.9]} 31. Kf2 {[%clk 0:00:23.4]} 31... d5
{[%clk 0:00:13.2]} 32. Nxd5 {[%clk 0:00:20.2]} 32... Rd8 {[%clk 0:00:11]} 33.
Ne3 {[%clk 0:00:20.7]} 33... Rxd1 {[%clk 0:00:11.4]} 34. Nxd1 {[%clk 0:00:21.6]}
34... Kg6 {[%clk 0:00:11.4]} 35. Ke3 {[%clk 0:00:20.2]} 35... Kf5 {[%clk
0:00:10.7]} 36. Nc3 {[%clk 0:00:20.8]} 36... b6 {[%clk 0:00:05.3]} 37. Nxe4
{[%clk 0:00:20.8]} 37... Bg6 {[%clk 0:00:03.7]} 38. Nc3 {[%clk 0:00:18.4]} 38...
Ke6 {[%clk 0:00:03.5]} 39. Nb5 {[%clk 0:00:18.1]} 39... Kd7 {[%clk 0:00:01.4]}
40. Nxa7 {[%clk 0:00:14.7]} 1-0

[Event "*** Titled Tuesday Blitz"]
[Site "Chess.com"]
[Date "2020.04.21"]
[Round "8"]
[White "joksijoksi"]
[Black "CzechmVIII"]
[Result "1-0"]
[WhiteElo "2371"]
[BlackElo "2235"]
[TimeControl "180+1"]
[EndTime "11:39:00 PDT"]
[Termination "joksijoksi won on time"]

1. e4 {[%clk 0:03:00.9]} 1... c5 {[%clk 0:02:59.8]} 2. Nf3 {[%clk 0:03:00.1]}
2... d6 {[%clk 0:02:59.9]} 3. d4 {[%clk 0:03:00.1]} 3... cxd4 {[%clk 0:03:00.2]}
4. Nxd4 {[%clk 0:03:01]} 4... Nf6 {[%clk 0:03:00.2]} 5. Nc3 {[%clk 0:03:01.6]}
5... g6 {[%clk 0:03:00.5]} 6. Be3 {[%clk 0:03:01]} 6... Bg7 {[%clk 0:03:00.6]}
7. f3 {[%clk 0:03:01.5]} 7... O-O {[%clk 0:03:00.6]} 8. Qd2 {[%clk 0:03:02.2]}
8... Nc6 {[%clk 0:03:00.8]} 9. g4 {[%clk 0:03:02.8]} 9... Be6 {[%clk 0:02:59]}
10. Nxe6 {[%clk 0:03:02.1]} 10... fxe6 {[%clk 0:02:59.9]} 11. O-O-O {[%clk
0:03:02.5]} 11... Ne5 {[%clk 0:02:58.9]} 12. Be2 {[%clk 0:03:02.4]} 12... Qc8
{[%clk 0:02:59]} 13. h4 {[%clk 0:03:00.9]} 13... Nc4 {[%clk 0:02:59]} 14. Bxc4
{[%clk 0:02:59.5]} 14... Qxc4 {[%clk 0:02:59.9]} 15. h5 {[%clk 0:02:55.6]} 15...
Nd7 {[%clk 0:02:53.6]} 16. hxg6 {[%clk 0:02:53.8]} 16... hxg6 {[%clk 0:02:54.1]}
17. f4 {[%clk 0:02:49.9]} 17... Bxc3 {[%clk 0:02:49.1]} 18. bxc3 {[%clk
0:02:50.8]} 18... Qxa2 {[%clk 0:02:48.3]} 19. Qh2 {[%clk 0:02:50.1]} 19... Kf7
{[%clk 0:02:46.1]} 20. Qh7+ {[%clk 0:02:49.7]} 20... Ke8 {[%clk 0:02:46]} 21.
Qxg6+ {[%clk 0:02:50.6]} 21... Kd8 {[%clk 0:02:44.3]} 22. e5 {[%clk 0:02:51]}
22... Rc8 {[%clk 0:02:09.8]} 23. exd6 {[%clk 0:02:10.3]} 23... Qa1+ {[%clk
0:02:06.6]} 24. Kd2 {[%clk 0:01:56.6]} 24... Qxc3+ {[%clk 0:02:06.1]} 25. Ke2
{[%clk 0:01:57.2]} 25... Qxc2+ {[%clk 0:01:52.9]} 26. Qxc2 {[%clk 0:01:58.1]}
26... Rxc2+ {[%clk 0:01:52.6]} 27. Kd3 {[%clk 0:01:58.4]} 27... Rc6 {[%clk
0:01:44.1]} 28. dxe7+ {[%clk 0:01:55.8]} 28... Kxe7 {[%clk 0:01:44.4]} 29. Ke4
{[%clk 0:01:35.8]} 29... Nf6+ {[%clk 0:01:32.4]} 30. Kf3 {[%clk 0:01:33.7]}
30... Nd5 {[%clk 0:01:30.3]} 31. Rh7+ {[%clk 0:01:30]} 31... Rf7 {[%clk
0:01:12.5]} 32. Rxf7+ {[%clk 0:01:26.3]} 32... Kxf7 {[%clk 0:01:12.8]} 33. Bd4
{[%clk 0:01:24.2]} 33... a5 {[%clk 0:00:48.7]} 34. Rh1 {[%clk 0:01:19.1]} 34...
Rc4 {[%clk 0:00:39.6]} 35. Be5 {[%clk 0:01:07.2]} 35... b5 {[%clk 0:00:33.6]}
36. Rh7+ {[%clk 0:01:03.5]} 36... Ke8 {[%clk 0:00:32.5]} 37. g5 {[%clk
0:00:57.7]} 37... a4 {[%clk 0:00:19.5]} 38. g6 {[%clk 0:00:56.8]} 38... Ne7
{[%clk 0:00:10.4]} 39. Rh8+ {[%clk 0:00:48.5]} 39... Kd7 {[%clk 0:00:09.2]} 40.
g7 {[%clk 0:00:49.4]} 40... Rc8 {[%clk 0:00:07.4]} 41. Bd6 {[%clk 0:00:28.6]}
41... Ng8 {[%clk 0:00:06.4]} 42. Bf8 {[%clk 0:00:27.9]} 42... Rb8 {[%clk
0:00:04.2]} 43. Rxg8 {[%clk 0:00:25.4]} 43... b4 {[%clk 0:00:04.6]} 44. Rh8
{[%clk 0:00:24.3]} 44... b3 {[%clk 0:00:03.8]} 45. Ba3 {[%clk 0:00:24.3]} 45...
b2 {[%clk 0:00:04.5]} 46. Rxb8 {[%clk 0:00:20.5]} 1-0

[Event "*** Titled Tuesday Blitz"]
[Site "Chess.com"]
[Date "2020.04.21"]
[Round "8"]
[White "jfriedel"]
[Black "sergiochess83"]
[Result "1/2-1/2"]
[WhiteElo "2611"]
[BlackElo "2812"]
[TimeControl "180+1"]
[EndTime "11:39:04 PDT"]
[Termination "Game drawn by agreement"]

1. Nf3 {[%clk 0:03:00.9]} 1... d5 {[%clk 0:02:59.1]} 2. g3 {[%clk 0:03:00.3]}
2... c6 {[%clk 0:02:58.4]} 3. c4 {[%clk 0:02:58.8]} 3... Nf6 {[%clk 0:02:55.7]}
4. Bg2 {[%clk 0:02:57.7]} 4... dxc4 {[%clk 0:02:52.9]} 5. O-O {[%clk 0:02:53.5]}
5... Nbd7 {[%clk 0:02:51.1]} 6. Na3 {[%clk 0:02:48]} 6... Nb6 {[%clk 0:02:49.9]}
7. Qc2 {[%clk 0:02:38.4]} 7... Be6 {[%clk 0:02:49.9]} 8. Ng5 {[%clk 0:02:26.2]}
8... Bg4 {[%clk 0:02:47.4]} 9. Nxc4 {[%clk 0:02:24.5]} 9... Bxe2 {[%clk
0:02:47.4]} 10. Ne5 {[%clk 0:02:20.8]} 10... Bh5 {[%clk 0:02:44.2]} 11. a4
{[%clk 0:02:00.3]} 11... Nbd5 {[%clk 0:02:25.8]} 12. Nxc6 {[%clk 0:01:48.1]}
12... Qc7 {[%clk 0:02:15.5]} 13. Nb4 {[%clk 0:01:45.3]} 13... Qxc2 {[%clk
0:02:12.9]} 14. Nxc2 {[%clk 0:01:46.2]} 14... e6 {[%clk 0:02:11]} 15. Ne3 {[%clk
0:01:37.6]} 15... Rd8 {[%clk 0:02:01.2]} 16. d4 {[%clk 0:01:31.7]} 16... Be7
{[%clk 0:01:56.4]} 17. Bd2 {[%clk 0:01:24.9]} 17... O-O {[%clk 0:01:53.9]} 18.
Rfc1 {[%clk 0:01:24.6]} 18... h6 {[%clk 0:01:41.3]} 19. Ne4 {[%clk 0:01:21.9]}
19... Rd7 {[%clk 0:00:38.9]} 20. Nc5 {[%clk 0:00:52.1]} 20... Rc7 {[%clk
0:00:39.2]} 21. Nxd5 {[%clk 0:00:50.2]} 21... Nxd5 {[%clk 0:00:39.1]} 22. Bxd5
{[%clk 0:00:36.3]} 22... exd5 {[%clk 0:00:40]} 23. Bf4 {[%clk 0:00:36.7]} 23...
Rc6 {[%clk 0:00:40.4]} 24. Nxb7 {[%clk 0:00:20.2]} 24... Rb6 {[%clk 0:00:40.6]}
25. Na5 {[%clk 0:00:17.8]} 25... Rxb2 {[%clk 0:00:34.3]} 26. Nc6 {[%clk
0:00:17.6]} 26... Bf6 {[%clk 0:00:34.8]} 27. Be5 {[%clk 0:00:16.3]} 27... Bxe5
{[%clk 0:00:31.7]} 28. Nxe5 {[%clk 0:00:14.3]} 28... Rd2 {[%clk 0:00:25.8]} 29.
Nc6 {[%clk 0:00:12.9]} 29... a6 {[%clk 0:00:26.3]} 30. a5 {[%clk 0:00:12.5]}
30... Re8 {[%clk 0:00:26.2]} 31. Re1 {[%clk 0:00:11.1]} 31... Rxe1+ {[%clk
0:00:24.5]} 32. Rxe1 {[%clk 0:00:12]} 32... Bf3 {[%clk 0:00:24.9]} 33. h3 {[%clk
0:00:11.2]} 33... g5 {[%clk 0:00:24.2]} 34. Ne5 {[%clk 0:00:10.4]} 34... Be4
{[%clk 0:00:22]} 35. f3 {[%clk 0:00:10.6]} 35... Bf5 {[%clk 0:00:20.4]} 36. Nc6
{[%clk 0:00:11.2]} 36... Kg7 {[%clk 0:00:19.1]} 37. g4 {[%clk 0:00:11.1]} 37...
Be6 {[%clk 0:00:18.7]} 38. Rb1 {[%clk 0:00:10.3]} 38... Bd7 {[%clk 0:00:13.2]}
39. Rb6 {[%clk 0:00:09.9]} 39... Bxc6 {[%clk 0:00:11]} 40. Rxc6 {[%clk
0:00:10.8]} 40... Rxd4 {[%clk 0:00:11.1]} 41. Rxa6 {[%clk 0:00:11.4]} 41... Rd2
{[%clk 0:00:10.6]} 42. Ra8 {[%clk 0:00:10.8]} 42... d4 {[%clk 0:00:10.7]} 43. a6
{[%clk 0:00:11.1]} 43... d3 {[%clk 0:00:09.9]} 44. Rd8 {[%clk 0:00:11.6]} 44...
Ra2 {[%clk 0:00:07.8]} 45. Rxd3 {[%clk 0:00:11.6]} 45... Rxa6 {[%clk 0:00:07.9]}
1/2-1/2